[Event "*** Titled Tuesday Blitz"]
[Site "Chess.com"]
[Date "2020.04.28"]
[Round "1"]
[White "Toro1234"]
[Black "GMaka"]
[Result "1-0"]
[WhiteElo "2643"]
[BlackElo "2321"]
[TimeControl "180+1"]
[EndTime "10:07:42 PDT"]
[Termination "Toro1234 won by resignation"]

1. Nf3 {[%clk 0:03:00.4]} 1... d5 {[%clk 0:02:46.2]} 2. g3 {[%clk 0:02:59.8]}
2... Nf6 {[%clk 0:02:45.2]} 3. Bg2 {[%clk 0:02:58.9]} 3... g6 {[%clk 0:02:45]}
4. O-O {[%clk 0:02:57.8]} 4... Bg7 {[%clk 0:02:45.9]} 5. d4 {[%clk 0:02:54.7]}
5... O-O {[%clk 0:02:45]} 6. c4 {[%clk 0:02:47.2]} 6... c6 {[%clk 0:02:45.3]} 7.
Qb3 {[%clk 0:02:46.8]} 7... Qb6 {[%clk 0:02:41.6]} 8. Nc3 {[%clk 0:02:46.6]}
8... Qxb3 {[%clk 0:02:40.1]} 9. axb3 {[%clk 0:02:45.4]} 9... Na6 {[%clk
0:02:40.7]} 10. Bf4 {[%clk 0:02:38.3]} 10... Bf5 {[%clk 0:02:29.3]} 11. Rfc1
{[%clk 0:02:31.3]} 11... Rfc8 {[%clk 0:02:17]} 12. h3 {[%clk 0:02:22.1]} 12...
Nb4 {[%clk 0:02:07.5]} 13. g4 {[%clk 0:02:19.7]} 13... Be4 {[%clk 0:02:01]} 14.
Be5 {[%clk 0:02:12.9]} 14... e6 {[%clk 0:01:51.5]} 15. g5 {[%clk 0:02:09.5]}
15... Nh5 {[%clk 0:01:45.5]} 16. Bxg7 {[%clk 0:02:06.5]} 16... Kxg7 {[%clk
0:01:46.4]} 17. Nxe4 {[%clk 0:02:06.3]} 17... dxe4 {[%clk 0:01:46.5]} 18. Nd2
{[%clk 0:02:05]} 18... Rd8 {[%clk 0:01:38.7]} 19. e3 {[%clk 0:02:02.1]} 19... e5
{[%clk 0:01:25.2]} 20. Nxe4 {[%clk 0:01:51.7]} 20... exd4 {[%clk 0:01:25.2]} 21.
exd4 {[%clk 0:01:49.3]} 21... Rxd4 {[%clk 0:01:26.1]} 22. Rd1 {[%clk 0:01:39.4]}
22... Rd3 {[%clk 0:01:17]} 23. Bf1 {[%clk 0:01:34.7]} 23... Rxb3 {[%clk
0:01:14.2]} 24. Rd7 {[%clk 0:01:34.1]} 24... Rxb2 {[%clk 0:01:09]} 25. Nd6
{[%clk 0:01:32.7]} 25... Rf8 {[%clk 0:01:07.7]} 26. Rxb7 {[%clk 0:01:24.2]}
26... a6 {[%clk 0:00:56.9]} 27. c5 {[%clk 0:01:20.4]} 27... Nf4 {[%clk
0:00:49.8]} 28. Ra4 {[%clk 0:00:58.6]} 28... a5 {[%clk 0:00:49.1]} 29. Rxa5
{[%clk 0:00:52.8]} 29... Ne6 {[%clk 0:00:49.2]} 30. h4 {[%clk 0:00:43.9]} 30...
h6 {[%clk 0:00:33.3]} 31. gxh6+ {[%clk 0:00:42.1]} 31... Kxh6 {[%clk 0:00:33.1]}
32. Nxf7+ {[%clk 0:00:41.8]} 32... Kh5 {[%clk 0:00:33.5]} 33. Ne5 {[%clk
0:00:35.5]} 33... Kh6 {[%clk 0:00:19.2]} 34. Nf7+ {[%clk 0:00:28.1]} 34... Kh5
{[%clk 0:00:18.7]} 35. Ne5 {[%clk 0:00:28.5]} 35... Kh6 {[%clk 0:00:16.4]} 36.
Ra4 {[%clk 0:00:20.5]} 36... Rfxf2 {[%clk 0:00:15.8]} 37. Raxb4 {[%clk
0:00:18.8]} 37... Nf4 {[%clk 0:00:16]} 38. Rxf4 {[%clk 0:00:17.3]} 38... Rxf4
{[%clk 0:00:15.8]} 39. Rxb2 {[%clk 0:00:16.2]} 39... Rxh4 {[%clk 0:00:15.2]} 40.
Bg2 {[%clk 0:00:15.3]} 40... Rh5 {[%clk 0:00:13.6]} 41. Nd3 {[%clk 0:00:14.3]}
41... Rg5 {[%clk 0:00:13]} 42. Kf2 {[%clk 0:00:13.6]} 42... Rf5+ {[%clk
0:00:12.2]} 43. Ke3 {[%clk 0:00:13.9]} 43... Rf6 {[%clk 0:00:13.1]} 44. Be4
{[%clk 0:00:13.6]} 44... Re6 {[%clk 0:00:14]} 45. Rg2 {[%clk 0:00:13.4]} 45...
Kg7 {[%clk 0:00:14.9]} 46. Rxg6+ {[%clk 0:00:13.2]} 46... Rxg6 {[%clk
0:00:15.8]} 47. Bxg6 {[%clk 0:00:13.5]} 47... Kxg6 {[%clk 0:00:16.7]} 48. Ne5+
{[%clk 0:00:13.8]} 48... Kf5 {[%clk 0:00:17.3]} 49. Nxc6 {[%clk 0:00:14.5]}
49... Ke6 {[%clk 0:00:18.2]} 50. Nb4 {[%clk 0:00:15]} 50... Kd7 {[%clk 0:00:18]}
51. Kd4 {[%clk 0:00:15.3]} 51... Kc7 {[%clk 0:00:18.9]} 52. Kd5 {[%clk
0:00:16.2]} 1-0

[Event "*** Titled Tuesday Blitz"]
[Site "Chess.com"]
[Date "2020.04.28"]
[Round "1"]
[White "Munkhzul_Turmunkh"]
[Black "DACF2905"]
[Result "1/2-1/2"]
[WhiteElo "2523"]
[BlackElo "2185"]
[TimeControl "180+1"]
[EndTime "10:07:44 PDT"]
[Termination "Game drawn by repetition"]

1. e4 {[%clk 0:03:00.4]} 1... e5 {[%clk 0:02:58.5]} 2. Nf3 {[%clk 0:03:00.2]}
2... Nf6 {[%clk 0:02:58.7]} 3. Nxe5 {[%clk 0:02:59.7]} 3... d6 {[%clk
0:02:58.3]} 4. Nf3 {[%clk 0:02:57.5]} 4... Nxe4 {[%clk 0:02:58.4]} 5. d4 {[%clk
0:02:52.2]} 5... d5 {[%clk 0:02:57.7]} 6. Bd3 {[%clk 0:02:51.9]} 6... Bd6 {[%clk
0:02:57.7]} 7. O-O {[%clk 0:02:49.4]} 7... O-O {[%clk 0:02:57.6]} 8. c4 {[%clk
0:02:48]} 8... c6 {[%clk 0:02:56.1]} 9. Nc3 {[%clk 0:02:46.6]} 9... Nxc3 {[%clk
0:02:38]} 10. bxc3 {[%clk 0:02:47.5]} 10... dxc4 {[%clk 0:02:37.9]} 11. Bxc4
{[%clk 0:02:46.6]} 11... Bf5 {[%clk 0:02:37.9]} 12. Re1 {[%clk 0:02:39.3]} 12...
Nd7 {[%clk 0:02:36.7]} 13. Bd3 {[%clk 0:02:38.9]} 13... Qf6 {[%clk 0:02:32.5]}
14. Bg5 {[%clk 0:02:33.1]} 14... Qg6 {[%clk 0:02:31.2]} 15. Bxf5 {[%clk
0:02:23.3]} 15... Qxf5 {[%clk 0:02:30.9]} 16. Qb1 {[%clk 0:02:24]} 16... Qxb1
{[%clk 0:02:28]} 17. Raxb1 {[%clk 0:02:24.9]} 17... Nb6 {[%clk 0:02:28]} 18. Nd2
{[%clk 0:01:59.7]} 18... f6 {[%clk 0:02:10.5]} 19. Bh4 {[%clk 0:01:54.2]} 19...
Rfe8 {[%clk 0:02:10.3]} 20. Ne4 {[%clk 0:01:50.9]} 20... Bf8 {[%clk 0:02:04.4]}
21. Bg3 {[%clk 0:01:49.8]} 21... Nc4 {[%clk 0:01:53.3]} 22. f3 {[%clk
0:01:32.7]} 22... b5 {[%clk 0:01:51.5]} 23. Kf2 {[%clk 0:01:31.1]} 23... a6
{[%clk 0:01:20.5]} 24. Bf4 {[%clk 0:01:30.7]} 24... f5 {[%clk 0:01:20]} 25. Ng5
{[%clk 0:01:19.9]} 25... h6 {[%clk 0:01:18.4]} 26. Ne6 {[%clk 0:01:19.9]} 26...
g5 {[%clk 0:01:13.5]} 27. Nxf8 {[%clk 0:00:49.3]} 27... Kxf8 {[%clk 0:01:13.1]}
28. Bc7 {[%clk 0:00:48]} 28... Kf7 {[%clk 0:01:12.5]} 29. h4 {[%clk 0:00:46.5]}
29... Rac8 {[%clk 0:01:10.4]} 30. Rxe8 {[%clk 0:00:40.1]} 30... Kxe8 {[%clk
0:01:08.5]} 31. Re1+ {[%clk 0:00:39.4]} 31... Kf7 {[%clk 0:01:08]} 32. Be5
{[%clk 0:00:38.1]} 32... Re8 {[%clk 0:01:06.6]} 33. hxg5 {[%clk 0:00:38.1]}
33... hxg5 {[%clk 0:01:07]} 34. f4 {[%clk 0:00:37]} 34... gxf4 {[%clk
0:01:03.7]} 35. Kf3 {[%clk 0:00:36.3]} 35... c5 {[%clk 0:00:58.8]} 36. Kxf4
{[%clk 0:00:35.3]} 36... cxd4 {[%clk 0:00:58.7]} 37. cxd4 {[%clk 0:00:35.8]}
37... Kg6 {[%clk 0:00:56.3]} 38. g4 {[%clk 0:00:29.4]} 38... fxg4 {[%clk
0:00:55.9]} 39. Kxg4 {[%clk 0:00:30.3]} 39... Nxe5+ {[%clk 0:00:52.4]} 40. dxe5
{[%clk 0:00:29.9]} 40... a5 {[%clk 0:00:47.6]} 41. Kf4 {[%clk 0:00:28.7]} 41...
Rf8+ {[%clk 0:00:44.6]} 42. Ke4 {[%clk 0:00:28.5]} 42... Rf2 {[%clk 0:00:44.1]}
43. a3 {[%clk 0:00:25.3]} 43... Ra2 {[%clk 0:00:39.6]} 44. Re3 {[%clk
0:00:25.5]} 44... Rd2 {[%clk 0:00:36.2]} 45. Rf3 {[%clk 0:00:23.9]} 45... b4
{[%clk 0:00:26.2]} 46. axb4 {[%clk 0:00:23.5]} 46... axb4 {[%clk 0:00:26.4]} 47.
Rb3 {[%clk 0:00:23.2]} 47... Re2+ {[%clk 0:00:25.4]} 48. Kd5 {[%clk 0:00:23.3]}
48... Kf5 {[%clk 0:00:24.4]} 49. Rf3+ {[%clk 0:00:20.5]} 49... Kg4 {[%clk
0:00:23.8]} 50. Rb3 {[%clk 0:00:19.5]} 50... Kf5 {[%clk 0:00:23.5]} 51. Rxb4
{[%clk 0:00:19.2]} 51... Rxe5+ {[%clk 0:00:22.7]} 52. Kd6 {[%clk 0:00:18.2]}
52... Re6+ {[%clk 0:00:22.2]} 53. Kd5 {[%clk 0:00:18.5]} 53... Re5+ {[%clk
0:00:22.4]} 54. Kd6 {[%clk 0:00:18.8]} 54... Re6+ {[%clk 0:00:22.6]} 55. Kd5
{[%clk 0:00:19]} 55... Re5+ {[%clk 0:00:22.8]} 1/2-1/2

[Event "*** Titled Tuesday Blitz"]
[Site "Chess.com"]
[Date "2020.04.28"]
[Round "1"]
[White "Mr_Sinigami"]
[Black "tgpgoat"]
[Result "1-0"]
[WhiteElo "2541"]
[BlackElo "2200"]
[TimeControl "180+1"]
[EndTime "10:07:45 PDT"]
[Termination "Mr_Sinigami won on time"]

1. Nf3 {[%clk 0:02:56.7]} 1... Nf6 {[%clk 0:02:36.1]} 2. c4 {[%clk 0:02:56]}
2... g6 {[%clk 0:02:25.8]} 3. Nc3 {[%clk 0:02:55.5]} 3... Bg7 {[%clk 0:02:26.7]}
4. e4 {[%clk 0:02:55]} 4... d6 {[%clk 0:02:26.6]} 5. d4 {[%clk 0:02:55.3]} 5...
c5 {[%clk 0:02:26.9]} 6. Be2 {[%clk 0:02:53.5]} 6... cxd4 {[%clk 0:02:27.1]} 7.
Nxd4 {[%clk 0:02:52.1]} 7... Nc6 {[%clk 0:02:28]} 8. Be3 {[%clk 0:02:48.9]} 8...
O-O {[%clk 0:02:27.9]} 9. O-O {[%clk 0:02:49.4]} 9... Be6 {[%clk 0:02:27.3]} 10.
Nxe6 {[%clk 0:02:45.5]} 10... fxe6 {[%clk 0:02:27]} 11. f3 {[%clk 0:02:45.8]}
11... Nd7 {[%clk 0:02:25.4]} 12. Rc1 {[%clk 0:02:41.2]} 12... b6 {[%clk
0:02:25.2]} 13. f4 {[%clk 0:02:33.9]} 13... Rc8 {[%clk 0:02:05.3]} 14. Bg4
{[%clk 0:02:31.6]} 14... e5 {[%clk 0:02:03.3]} 15. Be6+ {[%clk 0:02:26.9]} 15...
Kh8 {[%clk 0:02:02.8]} 16. f5 {[%clk 0:02:20.6]} 16... Rb8 {[%clk 0:01:56.9]}
17. Nd5 {[%clk 0:02:19.9]} 17... Nf6 {[%clk 0:01:49.1]} 18. Nxf6 {[%clk
0:02:16.9]} 18... Rxf6 {[%clk 0:01:46.9]} 19. Bd5 {[%clk 0:02:15.6]} 19... Nb4
{[%clk 0:01:44.8]} 20. fxg6 {[%clk 0:02:12.3]} 20... Rxg6 {[%clk 0:01:42.3]} 21.
Bf7 {[%clk 0:02:07]} 21... Rf6 {[%clk 0:01:40.3]} 22. Qh5 {[%clk 0:01:59.5]}
22... Nd3 {[%clk 0:01:22.5]} 23. Rxf6 {[%clk 0:01:47.1]} 23... exf6 {[%clk
0:01:15.8]} 24. Rf1 {[%clk 0:01:34]} 24... Nxb2 {[%clk 0:01:09.3]} 25. Rf3
{[%clk 0:01:27.6]} 25... Rb7 {[%clk 0:00:59.1]} 26. Bg6 {[%clk 0:01:17.1]} 26...
Qg8 {[%clk 0:00:49.7]} 27. Rh3 {[%clk 0:01:12.1]} 27... Bf8 {[%clk 0:00:49.3]}
28. Bf5 {[%clk 0:00:30.6]} 28... Nxc4 {[%clk 0:00:32.8]} 29. Bh6 {[%clk
0:00:30.4]} 29... Bxh6 {[%clk 0:00:25.3]} 30. Qxh6 {[%clk 0:00:31.3]} 30... Qg7
{[%clk 0:00:25.4]} 31. Qh5 {[%clk 0:00:29.4]} 31... b5 {[%clk 0:00:18.8]} 32.
Rg3 {[%clk 0:00:27.1]} 32... Qf7 {[%clk 0:00:18]} 33. Qg4 {[%clk 0:00:20.6]}
33... Rb8 {[%clk 0:00:17.1]} 34. Be6 {[%clk 0:00:20.7]} 34... h5 {[%clk
0:00:12]} 35. Qh3 {[%clk 0:00:17.5]} 35... Qh7 {[%clk 0:00:11.2]} 36. Bf5 {[%clk
0:00:17.6]} 36... Qh6 {[%clk 0:00:10.8]} 37. Rf3 {[%clk 0:00:08.2]} 37... Rg8
{[%clk 0:00:05.4]} 38. g3 {[%clk 0:00:06.3]} 38... Qc1+ {[%clk 0:00:05]} 39. Kg2
{[%clk 0:00:06.6]} 39... Qd2+ {[%clk 0:00:04.9]} 40. Kg1 {[%clk 0:00:05.1]}
40... Qe1+ {[%clk 0:00:04.2]} 41. Rf1 {[%clk 0:00:05.2]} 41... Qe3+ {[%clk
0:00:04.1]} 42. Kh1 {[%clk 0:00:05.6]} 1-0

[Event "*** Titled Tuesday Blitz"]
[Site "Chess.com"]
[Date "2020.04.28"]
[Round "1"]
[White "Kostya26"]
[Black "TheBigBoss04"]
[Result "0-1"]
[WhiteElo "2399"]
[BlackElo "2751"]
[TimeControl "180+1"]
[EndTime "10:07:46 PDT"]
[Termination "TheBigBoss04 won by resignation"]

1. e4 {[%clk 0:02:58.7]} 1... g6 {[%clk 0:02:58.4]} 2. d4 {[%clk 0:02:57.4]}
2... Bg7 {[%clk 0:02:58.6]} 3. Nc3 {[%clk 0:02:56.9]} 3... d6 {[%clk 0:02:57.4]}
4. Be3 {[%clk 0:02:56.4]} 4... a6 {[%clk 0:02:52.8]} 5. a4 {[%clk 0:02:55.5]}
5... Nd7 {[%clk 0:02:48.5]} 6. Bc4 {[%clk 0:02:52.9]} 6... e6 {[%clk 0:02:47.6]}
7. Nge2 {[%clk 0:02:47.5]} 7... Ngf6 {[%clk 0:02:45.1]} 8. f3 {[%clk 0:02:46.1]}
8... Rb8 {[%clk 0:02:34.8]} 9. O-O {[%clk 0:02:39.3]} 9... O-O {[%clk
0:02:33.8]} 10. Qd2 {[%clk 0:02:35.6]} 10... Re8 {[%clk 0:02:30.4]} 11. Rfd1
{[%clk 0:02:27.7]} 11... b6 {[%clk 0:02:28.1]} 12. Nf4 {[%clk 0:02:12.2]} 12...
Bb7 {[%clk 0:02:26.5]} 13. Qf2 {[%clk 0:01:57.4]} 13... Qe7 {[%clk 0:02:15.5]}
14. Re1 {[%clk 0:01:50.6]} 14... c6 {[%clk 0:02:06.7]} 15. Rad1 {[%clk
0:01:31.6]} 15... b5 {[%clk 0:02:04.7]} 16. Bb3 {[%clk 0:01:25]} 16... e5 {[%clk
0:01:52.8]} 17. Nd3 {[%clk 0:01:13.7]} 17... exd4 {[%clk 0:01:39.4]} 18. Bxd4
{[%clk 0:01:13]} 18... Ba8 {[%clk 0:01:31.1]} 19. Kh1 {[%clk 0:00:54.5]} 19...
b4 {[%clk 0:01:16.6]} 20. e5 {[%clk 0:00:38.2]} 20... dxe5 {[%clk 0:01:08.4]}
21. Nxe5 {[%clk 0:00:31.2]} 21... Nxe5 {[%clk 0:00:53]} 22. Bxe5 {[%clk
0:00:19.6]} 22... Ng4 {[%clk 0:00:31.9]} 23. fxg4 {[%clk 0:00:13.6]} 23... Bxe5
{[%clk 0:00:32.1]} 24. Ne4 {[%clk 0:00:13.2]} 24... Kg7 {[%clk 0:00:29.6]} 25.
Nc5 {[%clk 0:00:11]} 25... Qf6 {[%clk 0:00:20.5]} 26. Qxf6+ {[%clk 0:00:08.9]}
26... Bxf6 {[%clk 0:00:21]} 27. Nd7 {[%clk 0:00:08.3]} 27... Rxe1+ {[%clk
0:00:15.9]} 28. Rxe1 {[%clk 0:00:09.2]} 28... Rd8 {[%clk 0:00:15.8]} 29. Nxf6
{[%clk 0:00:09.6]} 29... Kxf6 {[%clk 0:00:16.4]} 30. Rf1+ {[%clk 0:00:10.1]}
30... Kg5 {[%clk 0:00:15.9]} 31. Bxf7 {[%clk 0:00:10.2]} 31... c5 {[%clk
0:00:13.7]} 32. Bb3 {[%clk 0:00:05.3]} 32... Rd2 {[%clk 0:00:13.5]} 33. Rg1
{[%clk 0:00:05.7]} 33... Kxg4 {[%clk 0:00:12]} 34. c3 {[%clk 0:00:05.7]} 34...
Rxb2 {[%clk 0:00:11.3]} 35. Be6+ {[%clk 0:00:04.8]} 35... Kg5 {[%clk 0:00:11.1]}
36. cxb4 {[%clk 0:00:04.8]} 36... cxb4 {[%clk 0:00:11.8]} 37. h3 {[%clk
0:00:05.4]} 37... a5 {[%clk 0:00:09.8]} 38. Kh2 {[%clk 0:00:05.7]} 38... Re2
{[%clk 0:00:09.4]} 39. Bc4 {[%clk 0:00:04.9]} 39... Rc2 {[%clk 0:00:09.4]} 40.
Bd3 {[%clk 0:00:04.8]} 40... Rd2 {[%clk 0:00:09.6]} 41. Bb5 {[%clk 0:00:05]}
41... h5 {[%clk 0:00:07.4]} 42. Kg3 {[%clk 0:00:05.2]} 42... h4+ {[%clk
0:00:07]} 43. Kh2 {[%clk 0:00:05.8]} 43... b3 {[%clk 0:00:06.4]} 44. Bf1 {[%clk
0:00:04.6]} 44... b2 {[%clk 0:00:05.3]} 45. Bc4 {[%clk 0:00:04.2]} 45... Rxg2+
{[%clk 0:00:05.1]} 46. Rxg2+ {[%clk 0:00:04.1]} 46... Bxg2 {[%clk 0:00:05.8]}
0-1

[Event "*** Titled Tuesday Blitz"]
[Site "Chess.com"]
[Date "2020.04.28"]
[Round "1"]
[White "ZAbdumalik"]
[Black "Danfii"]
[Result "1-0"]
[WhiteElo "2657"]
[BlackElo "2330"]
[TimeControl "180+1"]
[EndTime "10:07:47 PDT"]
[Termination "ZAbdumalik won by resignation"]

1. e4 {[%clk 0:03:00.9]} 1... e5 {[%clk 0:02:59.3]} 2. Nf3 {[%clk 0:03:01.1]}
2... Nc6 {[%clk 0:02:59.3]} 3. Bb5 {[%clk 0:03:01.8]} 3... a6 {[%clk 0:02:59.4]}
4. Ba4 {[%clk 0:03:02.1]} 4... Nf6 {[%clk 0:02:59.1]} 5. O-O {[%clk 0:03:02.7]}
5... b5 {[%clk 0:02:59.3]} 6. Bb3 {[%clk 0:03:02.6]} 6... Bc5 {[%clk 0:03:00]}
7. c3 {[%clk 0:03:01.8]} 7... d6 {[%clk 0:03:00.3]} 8. d4 {[%clk 0:03:02]} 8...
Bb6 {[%clk 0:03:00.7]} 9. Be3 {[%clk 0:03:02.3]} 9... O-O {[%clk 0:02:59.7]} 10.
Nbd2 {[%clk 0:03:02.2]} 10... Re8 {[%clk 0:02:51.7]} 11. Re1 {[%clk 0:03:02]}
11... Bb7 {[%clk 0:02:47.3]} 12. d5 {[%clk 0:02:53.4]} 12... Ne7 {[%clk
0:02:47]} 13. Bxb6 {[%clk 0:02:53.4]} 13... cxb6 {[%clk 0:02:47.9]} 14. a4
{[%clk 0:02:49.5]} 14... bxa4 {[%clk 0:02:47.7]} 15. Bxa4 {[%clk 0:02:49.1]}
15... b5 {[%clk 0:02:48.1]} 16. Bc2 {[%clk 0:02:49.2]} 16... Ng6 {[%clk
0:02:48]} 17. Bd3 {[%clk 0:02:49]} 17... h6 {[%clk 0:02:44.1]} 18. Bf1 {[%clk
0:02:48.3]} 18... Qb6 {[%clk 0:02:39.8]} 19. h3 {[%clk 0:02:45]} 19... Nd7
{[%clk 0:02:26.2]} 20. c4 {[%clk 0:02:41.5]} 20... Rec8 {[%clk 0:02:19.5]} 21.
cxb5 {[%clk 0:02:33.6]} 21... axb5 {[%clk 0:02:19.5]} 22. Qb3 {[%clk 0:02:33.9]}
22... Rxa1 {[%clk 0:01:56.6]} 23. Rxa1 {[%clk 0:02:33.3]} 23... Rc5 {[%clk
0:01:56.9]} 24. Qb4 {[%clk 0:02:31.9]} 24... Ne7 {[%clk 0:01:44.2]} 25. Qa5
{[%clk 0:02:31.6]} 25... Nc8 {[%clk 0:01:27.2]} 26. b4 {[%clk 0:02:28.2]} 26...
Rc2 {[%clk 0:01:24.5]} 27. Qxb5 {[%clk 0:02:27.5]} 27... Qxb5 {[%clk 0:01:17.9]}
28. Bxb5 {[%clk 0:02:26.9]} 28... Ndb6 {[%clk 0:01:17.8]} 29. Kf1 {[%clk
0:02:22.1]} 29... Rb2 {[%clk 0:01:17.9]} 30. Rb1 {[%clk 0:02:20.8]} 30... Ra2
{[%clk 0:01:16.1]} 31. Bc6 {[%clk 0:02:20.2]} 31... Bxc6 {[%clk 0:01:11.7]} 32.
dxc6 {[%clk 0:02:20.5]} 32... Kf8 {[%clk 0:01:07.6]} 33. b5 {[%clk 0:02:18.6]}
33... Ke7 {[%clk 0:01:07.7]} 34. Ke2 {[%clk 0:02:17.6]} 34... Kd8 {[%clk
0:01:03.7]} 35. Kd3 {[%clk 0:02:14.9]} 35... Kc7 {[%clk 0:01:03.3]} 36. Nh4
{[%clk 0:02:09.3]} 36... g6 {[%clk 0:01:02.8]} 37. Nhf3 {[%clk 0:02:08.3]} 37...
Na7 {[%clk 0:01:00.5]} 38. Nc4 {[%clk 0:02:01.9]} 38... Nxc4 {[%clk 0:00:54.2]}
39. Kxc4 {[%clk 0:02:02.1]} 39... Ra4+ {[%clk 0:00:50.7]} 40. Rb4 {[%clk
0:01:56.3]} 40... Rxb4+ {[%clk 0:00:45.5]} 41. Kxb4 {[%clk 0:01:56.6]} 41... Kb6
{[%clk 0:00:46.4]} 42. Nd2 {[%clk 0:01:50.7]} 42... Nxb5 {[%clk 0:00:45.5]} 43.
Nc4+ {[%clk 0:01:48.4]} 43... Kxc6 {[%clk 0:00:45.6]} 44. Na5+ {[%clk
0:01:48.7]} 44... Kb6 {[%clk 0:00:45.6]} 45. Nc4+ {[%clk 0:01:48.9]} 45... Kc6
{[%clk 0:00:45]} 46. Na5+ {[%clk 0:01:45.5]} 46... Kb6 {[%clk 0:00:45.4]} 47.
Nc4+ {[%clk 0:01:45.9]} 47... Ka6 {[%clk 0:00:40.9]} 48. Ne3 {[%clk 0:01:46]}
48... Nc7 {[%clk 0:00:37.8]} 49. Kc4 {[%clk 0:01:40.4]} 49... Kb6 {[%clk
0:00:36]} 50. Ng4 {[%clk 0:01:40.7]} 50... h5 {[%clk 0:00:34.4]} 51. Nh6 {[%clk
0:01:40.9]} 51... f6 {[%clk 0:00:31.3]} 52. Ng8 {[%clk 0:01:40.8]} 52... Ne8
{[%clk 0:00:31.3]} 53. Kd5 {[%clk 0:01:39.6]} 53... Kc7 {[%clk 0:00:30.5]} 54.
Ke6 {[%clk 0:01:39.9]} 54... f5 {[%clk 0:00:25.4]} 55. exf5 {[%clk 0:01:37.9]}
55... gxf5 {[%clk 0:00:26.3]} 56. Kxf5 {[%clk 0:01:38]} 56... Kc6 {[%clk
0:00:26.7]} 57. g4 {[%clk 0:01:34.4]} 57... hxg4 {[%clk 0:00:26.7]} 58. hxg4
{[%clk 0:01:34.3]} 58... Kc5 {[%clk 0:00:26.6]} 59. Ne7 {[%clk 0:01:33.7]} 59...
Kc4 {[%clk 0:00:21.1]} 60. g5 {[%clk 0:01:33]} 60... d5 {[%clk 0:00:20]} 61.
Kxe5 {[%clk 0:01:33.1]} 61... d4 {[%clk 0:00:20.3]} 62. Nf5 {[%clk 0:01:33.4]}
62... d3 {[%clk 0:00:19.5]} 63. Ne3+ {[%clk 0:01:33.7]} 63... Kc3 {[%clk
0:00:20]} 64. f4 {[%clk 0:01:34.1]} 64... Kd2 {[%clk 0:00:20.1]} 65. Kd4 {[%clk
0:01:34.2]} 65... Nd6 {[%clk 0:00:17.9]} 66. g6 {[%clk 0:01:34.1]} 66... Nb5+
{[%clk 0:00:17.6]} 67. Ke4 {[%clk 0:01:34.5]} 67... Nd6+ {[%clk 0:00:16.7]} 68.
Kf3 {[%clk 0:01:34.8]} 68... Ne8 {[%clk 0:00:15.3]} 69. f5 {[%clk 0:01:33.4]}
69... Kc3 {[%clk 0:00:11.5]} 70. Nd1+ {[%clk 0:01:27.1]} 70... Kc2 {[%clk
0:00:11]} 71. Nf2 {[%clk 0:01:26.9]} 71... d2 {[%clk 0:00:10]} 72. Kf4 {[%clk
0:01:27.3]} 72... Kc3 {[%clk 0:00:08]} 73. Ke5 {[%clk 0:01:27.5]} 73... Ng7
{[%clk 0:00:04.6]} 74. f6 {[%clk 0:01:27.3]} 74... Nh5 {[%clk 0:00:03]} 75. f7
{[%clk 0:01:27.6]} 75... Ng7 {[%clk 0:00:02.4]} 76. f8=Q {[%clk 0:01:27.8]} 1-0

[Event "*** Titled Tuesday Blitz"]
[Site "Chess.com"]
[Date "2020.04.28"]
[Round "1"]
[White "JozefKneht"]
[Black "IMTominho"]
[Result "0-1"]
[WhiteElo "2422"]
[BlackElo "2802"]
[TimeControl "180+1"]
[EndTime "10:07:48 PDT"]
[Termination "IMTominho won by resignation"]

1. e4 {[%clk 0:02:59.2]} 1... e5 {[%clk 0:02:27.4]} 2. Nf3 {[%clk 0:02:57.7]}
2... Nf6 {[%clk 0:02:26.5]} 3. Nxe5 {[%clk 0:02:56.8]} 3... d6 {[%clk
0:02:26.1]} 4. Nf3 {[%clk 0:02:57.1]} 4... Nxe4 {[%clk 0:02:24.6]} 5. Qe2 {[%clk
0:02:57.3]} 5... Qe7 {[%clk 0:02:24.2]} 6. d3 {[%clk 0:02:57.7]} 6... Nf6 {[%clk
0:02:24.2]} 7. Bg5 {[%clk 0:02:57.9]} 7... Nbd7 {[%clk 0:02:23.8]} 8. Nc3 {[%clk
0:02:57.4]} 8... h6 {[%clk 0:02:21.1]} 9. Bh4 {[%clk 0:02:55.9]} 9... Qxe2+
{[%clk 0:02:11.9]} 10. Bxe2 {[%clk 0:02:55.1]} 10... c6 {[%clk 0:02:12.8]} 11.
O-O {[%clk 0:02:53.5]} 11... Be7 {[%clk 0:02:05.3]} 12. b4 {[%clk 0:02:52]}
12... O-O {[%clk 0:02:03]} 13. Rab1 {[%clk 0:02:50.2]} 13... g5 {[%clk
0:01:59.9]} 14. Bg3 {[%clk 0:02:49.2]} 14... Nh5 {[%clk 0:02:00.4]} 15. Nd4
{[%clk 0:02:38.6]} 15... Nxg3 {[%clk 0:01:37.6]} 16. fxg3 {[%clk 0:02:37.8]}
16... Bf6 {[%clk 0:01:37.6]} 17. Rxf6 {[%clk 0:02:31.1]} 17... Nxf6 {[%clk
0:01:38.5]} 18. b5 {[%clk 0:02:31.1]} 18... c5 {[%clk 0:01:31.5]} 19. Nb3 {[%clk
0:02:24.1]} 19... b6 {[%clk 0:01:29.4]} 20. Rf1 {[%clk 0:02:10.9]} 20... Kg7
{[%clk 0:01:26.9]} 21. Bf3 {[%clk 0:01:59]} 21... Rb8 {[%clk 0:01:26.6]} 22. Nd2
{[%clk 0:01:58]} 22... Bb7 {[%clk 0:01:25.1]} 23. Nc4 {[%clk 0:01:49.7]} 23...
Bxf3 {[%clk 0:01:08.9]} 24. Rxf3 {[%clk 0:01:50.6]} 24... d5 {[%clk 0:01:08.2]}
25. Ne5 {[%clk 0:01:49.8]} 25... d4 {[%clk 0:01:08.4]} 26. Na4 {[%clk
0:01:37.1]} 26... Nd5 {[%clk 0:01:05.8]} 27. Nd7 {[%clk 0:01:32.8]} 27... Nb4
{[%clk 0:00:31.3]} 28. c3 {[%clk 0:01:21.4]} 28... Nxa2 {[%clk 0:00:29.4]} 29.
cxd4 {[%clk 0:01:18.9]} 29... Rbd8 {[%clk 0:00:22.7]} 30. Nxf8 {[%clk
0:01:17.1]} 30... Rxd4 {[%clk 0:00:22.7]} 31. Nb2 {[%clk 0:00:50.1]} 31... Kxf8
{[%clk 0:00:20.4]} 32. Nc4 {[%clk 0:00:51]} 32... Kg7 {[%clk 0:00:18.8]} 33. h3
{[%clk 0:00:44.5]} 33... Nc3 {[%clk 0:00:18.1]} 34. Ne5 {[%clk 0:00:36.5]} 34...
f6 {[%clk 0:00:17]} 35. Ng4 {[%clk 0:00:36.3]} 35... Rd6 {[%clk 0:00:14.4]} 36.
Ne3 {[%clk 0:00:35.9]} 36... Kg6 {[%clk 0:00:10.5]} 37. Nf5 {[%clk 0:00:35.9]}
37... Rd7 {[%clk 0:00:10.8]} 38. g4 {[%clk 0:00:28.2]} 38... Nxb5 {[%clk
0:00:11]} 39. g3 {[%clk 0:00:28.4]} 39... Nd4 {[%clk 0:00:10.4]} 40. Nxd4 {[%clk
0:00:27.8]} 40... Rxd4 {[%clk 0:00:11.3]} 41. Re3 {[%clk 0:00:27.2]} 41... a5
{[%clk 0:00:11]} 42. Kf2 {[%clk 0:00:26.4]} 42... a4 {[%clk 0:00:10.3]} 43. Re7
{[%clk 0:00:26.1]} 43... Rb4 {[%clk 0:00:09.6]} 44. Kf3 {[%clk 0:00:24.7]} 44...
h5 {[%clk 0:00:09.5]} 45. gxh5+ {[%clk 0:00:21.8]} 45... Kxh5 {[%clk 0:00:10.4]}
46. Ra7 {[%clk 0:00:19.8]} 46... Rb3 {[%clk 0:00:09.9]} 47. Ke4 {[%clk
0:00:19.1]} 47... Kg6 {[%clk 0:00:10.4]} 48. g4 {[%clk 0:00:18.7]} 48... b5
{[%clk 0:00:09.5]} 49. Ra5 {[%clk 0:00:15.7]} 49... a3 {[%clk 0:00:09]} 0-1